Cogmind - Beta 9.5 @@@ ROGUE MODE // 2020.04.11 @ 21:54:47 Player: Barleymor Result: Destroyed by H-66 Slayer with Gauss Rifle Performance ------------- Evolutions (4) 2000 Regions Visited (8) 1600 Robots Destroyed (72) 360 Value Destroyed (2170) 2170 Prototype IDs (8) 160 Alien Tech Used (0) 0 Bonus (0) 0 TOTAL SCORE: 6290 Bonus ------- None Cogmind --------- Core Integrity 0/850 Matter 300/300 Energy 73/100 System Corruption 3% Temperature Cool (0) Movement Core (50) Location -6/Factory Parts ------- > --- POWER (1) -------- (None) > --- PROPULSION (6) --- (None) > --- UTILITY (6) ------ Advanced Signal Interpreter > --- WEAPON (2) ------- (None) > --- INVENTORY (4) ---- Large Storage Unit Improved Field Recycling Unit (0) Peak State ------------ > --- POWER ------------ Light Nuclear Core > --- PROPULSION ------- Aluminum Leg Aluminum Leg Aluminum Leg Carbon-fiber Leg Titanium Leg > --- UTILITY ---------- Improved Heat Sink Large Storage Unit Hardened Light Armor Plating Improved Light Armor Plating System Backup Module > --- WEAPON ----------- Gatling Laser Improved Light Cannon > --- INVENTORY -------- Light Nuclear Core Light Nuclear Core Aluminum Leg Aluminum Leg Aluminum Leg Small Storage Unit Sensor Array Improved Field Recycling Unit Shock Rifle Lightning Gun [Rating: 33] Favorites ----------- Power Light Nuclear Core Engine Ion Engine Power Core Light Nuclear Core Propulsion Aluminum Leg Treads Armored Treads Leg Aluminum Leg Wheel Wheel Utility Light Armor Plating Device Improved Heat Sink Storage Large Storage Unit Processor Advanced Signal Interpreter Protection Light Armor Plating Weapon Improved Light Cannon Energy Gun Gatling Laser Energy Cannon EM Pulse Cannon Ballistic Gun Heavy Assault Rifle Ballistic Cannon Improved Light Cannon Launcher Grenade Launcher Special Weapon Remote Datajack Impact Weapon Great Maul Slashing Weapon Mining Claw Build | -11 -10 -9 -9 -8 -7 -7 -7 -6 ------- Run | Scr Mat Mat Min Mat Fac Low Low Fac Slots Evolved 8 | . . 2 . 2 2 . . 2 Power . | . . . . . . . . . Propulsion 4 | . . 1 . 1 1 . . 1 Utility 4 | . . 1 . 1 1 . . 1 Weapon . | . . . . . . . . . Parts Attached 72 | 6 2 4 1 4 23 14 3 15 Power 10 | 1 . . . . 4 1 . 4 Engine 3 | 1 . . . . 2 . . . Core 7 | . . . . . 2 1 . 4 Reactor . | . . . . . . . . . Propulsion 23 | 2 . 2 1 1 9 5 1 2 Treads 2 | . . 1 . . . 1 . . Leg 20 | 2 . 1 1 1 9 4 1 1 Wheel 1 | . . . . . . . . 1 Hover . | . . . . . . . . . Flight . | . . . . . . . . . Utility 20 | 1 1 1 . 2 5 4 . 6 Device 10 | . . . . . 2 3 . 5 Storage 2 | 1 . . . 1 . . . . Processor 1 | . . . . . . . . 1 Hackware . | . . . . . . . . . Protection 7 | . 1 1 . 1 3 1 . . Artifact . | . . . . . . . . . Weapon 19 | 2 1 1 . 1 5 4 2 3 Energy Gun 7 | 1 . . . . 3 2 1 . Energy Cannon 4 | . . . . . 2 . . 2 Ballistic Gun 2 | 1 . . . 1 . . . . Ballistic Cannon 2 | . . 1 . . . 1 . . Launcher 1 | . 1 . . . . . . . Special Weapon 1 | . . . . . . 1 . . Impact Weapon 1 | . . . . . . . . 1 Slashing Weapon 1 | . . . . . . . 1 . Piercing Weapon . | . . . . . . . . . Special Melee Weapon . | . . . . . . . . . Unidentified Prototypes . | . . . . . . . . . Parts Lost 49 | . . . . . 17 10 12 10 Power 7 | . . . . . 2 1 1 3 Propulsion 20 | . . . . . 7 5 6 2 Utility 9 | . . . . . 4 . 2 3 Weapon 13 | . . . . . 4 4 3 2 Highest Loss Streak 8 | . . . . . 6 8 6 6 Average Slot Usage (%) 83 | . 92 85 100 89 92 94 83 22 Engine 4 | . 14 11 11 9 5 . . . Core 2 | . . . . . 1 6 6 2 Treads 1 | . . 5 . . . 1 6 . Leg 28 | . 28 23 33 36 35 35 24 . Device 8 | . . . . . 9 15 15 7 Storage 7 | . 14 11 11 9 7 7 7 . Protection 12 | . 6 12 22 17 16 14 10 . Energy Gun 3 | . 14 2 . . 2 5 2 . Ballistic Gun 1 | . 2 . . 6 4 . . . Ballistic Cannon 4 | . . 8 11 9 3 5 . . Launcher 2 | . 11 11 11 2 . . . . Naked Turns . | . . . . . . . . . Heaviest Build 49 | 13 17 22 22 34 49 39 38 12 Greatest Support 53 | 20 20 30 30 43 53 42 40 19 Greatest Overweight (x) 7 | 1 . . . . 4 1 7 2 Average Overweight (x) . | . . . . . . . . . Largest Inventory Capacity 10 | 6 6 6 6 10 10 10 10 10 Average Capacity 8 | 5 6 6 6 9 10 10 10 4 Most Carried 10 | 3 6 6 6 10 10 10 8 7 Average Carried 6 | 2 4 5 6 6 8 7 6 3 Final Capacity 10 | 6 6 6 6 10 10 10 10 4 Final Carried 10 | 2 6 6 6 10 8 5 7 2 Class Distribution -------------------- 56% | Scavenger-Mutant 41% | Mutant Dominant Class ---------------- Mutant | -10/Materials Mutant | -9/Materials Mutant | -9/Mines Scavenger-Mutant | -8/Materials Scavenger-Mutant | -7/Factory Scavenger-Mutant | -7/Lower Caves Scavenger-Mutant | -7/Lower Caves Mutant | -6/Factory Resources | -11 -10 -9 -9 -8 -7 -7 -7 -6 ----------- Run | Scr Mat Mat Min Mat Fac Low Low Fac Matter Collected 1506 | 275 42 210 165 40 430 214 25 105 Remotely . | . . . . . . . . . Salvage Created 2059 | 54 104 273 202 . 934 292 67 133 Parts 127 | 2 18 21 14 . 45 16 5 6 Haulers Intercepted . | . . . . . . . . . Recyclers Shooed . | . . . . . . . . . Parts Field Recycled . | . . . . . . . . . Retrieved Matter . | . . . . . . . . . Parts Self-Destructed 18 | . . . . . . 13 5 . Prevented 2 | . . . . . . . 2 . Kills | -11 -10 -9 -9 -8 -7 -7 -7 -6 ------- Run | Scr Mat Mat Min Mat Fac Low Low Fac Combat Hostiles Destroyed 57 | . 4 8 10 . 20 8 3 4 Melee 3 | . . . . . . . 1 2 Guns 15 | . . . . . 8 6 1 . Cannons 15 | . . 2 . . 11 1 . 1 AOE 22 | . 4 6 10 . 1 . 1 . Classes Destroyed 13 | 1 7 2 . . 3 . . . Worker 4 | . 1 2 . . 1 . . . Builder 4 | . 3 . 1 . . . . . Tunneler 1 | . 1 . . . . . . . Recycler 3 | 1 . 1 1 . . . . . Operator 1 | . 1 . . . . . . . Watcher 2 | . 1 1 . . . . . . Swarmer 23 | . 3 3 7 . 3 1 3 3 Grunt 21 | . 1 2 3 . 10 4 . 1 Brawler 1 | . . 1 . . . . . . Duelist 2 | . . . . . 2 . . . Sentry 5 | . . 2 . . 2 1 . . Hunter 2 | . . . . . 1 1 . . Programmer 3 | . . . . . 2 1 . . Best Kill Streak 9 | 1 9 5 5 . 4 2 2 2 Combat Bots Only 4 | . 3 3 4 . 3 2 2 2 Max Kills in Single Turn 5 | 1 3 2 5 . 1 1 1 1 Gunslinging . | . . . . . . . . . Exploded 4 | . 2 2 4 . 1 . 1 . Melee 1 | . . . . . . . 1 1 Uniques/NPCs Destroyed . | . . . . . . . . . Combat | -11 -10 -9 -9 -8 -7 -7 -7 -6 -------- Run | Scr Mat Mat Min Mat Fac Low Low Fac Damage Taken 6307 | . 41 240 65 29 2275 1118 1057 1482 Core 1556 | . . 24 . . 191 225 248 868 Absorbed by Shields . | . . . . . . . . . Core Remaining (%) 79 | 100 100 . 94 100 . . 5 . Volleys Fired 156 | 5 9 19 6 . 77 30 9 1 Largest 2 | 2 2 2 2 . 2 2 1 1 Hottest 130 | 70 70 69 69 . 130 119 60 69 Shots Fired 265 | 10 10 26 7 . 149 53 9 1 Gun 132 | 10 2 . . . 83 31 6 . Cannon 100 | . . 10 1 . 66 22 . 1 Launcher 30 | . 8 16 6 . . . . . Special 3 | . . . . . . . 3 . Kinetic 118 | 5 1 10 1 . 79 22 . . Thermal 35 | 5 1 . . . 7 22 . . Explosive 30 | . 8 16 6 . . . . . Electromagnetic 79 | . . . . . 63 9 6 1 Robot Hit Streak 16 | 4 2 9 1 . 13 16 3 1 Robot Miss Streak 4 | 3 1 2 2 . 3 3 4 . Penetration Max . | . . . . . . . . . Secondary Targets . | . . . . . . . . . Shots Hit Robots 196 | 5 4 13 1 . 109 44 8 12 Core Hits 142 | 2 15 28 16 . 52 20 5 4 Critical Hits 2 | . . . . . 2 . . . Critical Kills 1 | . . . . . 1 . . . Critical Parts Destroyed 1 | . . . . . 1 . . . Melee Attacks 21 | . . . . . . . 4 17 Impact 17 | . . . . . . . . 17 Slashing 4 | . . . . . . . 4 . Piercing . | . . . . . . . . . Sneak Attacks . | . . . . . . . . . Combat Hostiles . | . . . . . . . . . Follow-up Attacks . | . . . . . . . . . Damage Inflicted 4963 | 59 613 584 727 . 1707 747 166 360 Guns 1599 | 59 12 . . . 906 552 70 . Cannons 1107 | . . 164 . . 720 195 . 28 Explosions 1901 | . 601 420 727 . 81 . 72 . Melee 355 | . . . . . . . 24 331 Ramming 1 | . . . . . . . . 1 Kinetic 1334 | 23 . 164 . . 952 195 . . Thermal 912 | 36 12 . 167 . 206 419 72 . Explosive 1581 | . 601 420 560 . . . . . Electromagnetic 780 | . . . . . 549 133 70 28 Impact 331 | . . . . . . . . 331 Slashing 24 | . . . . . . . 24 . Piercing . | . . . . . . . . . Highest Corruption 7 | . . . . 1 6 7 . 3 Average Corruption 4 | . . . . 1 5 5 . 1 Corruption Purged 7 | . . . . . . 7 . . Effects 39 | . . . . 2 15 22 . . Message Errors 12 | . . . . 2 5 5 . . Matter Fused 6 | . . . . . 2 4 . . Heat Flow Errors 4 | . . . . . . 4 . . Parts Rejected 1 | . . . . . . 1 . . Data Loss (minor) 5 | . . . . . 3 2 . . Data Loss (major) 4 | . . . . . 1 3 . . Misfires 1 | . . . . . 1 . . . Targeting Errors 5 | . . . . . 3 2 . . Weapon Failures 1 | . . . . . . 1 . . Overload Shots . | . . . . . . . . . Overflow Damage 78 | . 25 . 31 . 5 . . 17 Projectiles . | . . . . . . . . . Explosions 61 | . 25 . 31 . 5 . . . Melee 17 | . . . . . . . . 17 Knockbacks 13 | . . . . . 7 6 . . Impact . | . . . . . . . . . Kinetic 12 | . . . . . 7 5 . . Secondary 1 | . . . . . . 1 . . Self-Inflicted Damage 196 | . 14 58 23 . 70 . 31 . Shots 6 | . 1 2 1 . 1 . 1 . Rammed 3 | . . . . . . . . 3 Targets Rammed 3 | . . . . . . . . 3 Kicked . | . . . . . . . . . Crushed . | . . . . . . . . . Highest Temperature 516 | 36 9 90 18 . 516 242 7 6 Average Temperature 95 | 19 6 35 8 . 141 37 3 6 Received Heat Transfer 1338 | . . 57 24 9 468 453 117 210 Effects 10 | . . . . . 9 1 . . Shutdowns 4 | . . . . . 4 . . . Energy Bleed 1 | . . . . . . 1 . . Short Circuit 2 | . . . . . 2 . . . Damage (minor) 3 | . . . . . 3 . . . Siege Activations . | . . . . . . . . . Robots Corrupted 1 | . . . . . . 1 . . Combat Hostiles 1 | . . . . . . 1 . . Parts Fried 3 | . . . . . 3 . . . Impact Corruptions 3 | . . . . . . . . 3 Robots Melted . | . . . . . . . . . Combat Hostiles . | . . . . . . . . . Parts Melted 1 | . . . . . . 1 . . Heat Transferred 1760 | 111 37 . 250 . 325 937 100 . Parts Sabotaged . | . . . . . . . . . Parts Stolen . | . . . . . . . . . Parts Stripped . | . . . . . . . . . Power Chain Reactions 2 | . . . . . 1 . 1 . Missiles Intercepted . | . . . . . . . . . Alert | -11 -10 -9 -9 -8 -7 -7 -7 -6 ------- Run | Scr Mat Mat Min Mat Fac Low Low Fac Peak Influence 392 | 5 203 237 392 98 244 . . 40 Average Influence 93 | 2 77 127 236 79 90 . . 14 Maximum Alert Level 1 | . 1 1 1 . 1 . . . Low Security (%) 90 | 100 99 74 63 100 91 . . 100 Level 1 9 | . . 25 36 . 8 . . . Level 2 . | . . . . . . . . . Level 3 . | . . . . . . . . . Level 4 . | . . . . . . . . . Level 5 . | . . . . . . . . . High Security . | . . . . . . . . . Max Security . | . . . . . . . . . Squads Dispatched 9 | . 1 . . . 5 . . 3 Investigation 2 | . . . . . . . . 2 Extermination 2 | . . . . . 1 . . 1 Reinforcement 2 | . 1 . . . 1 . . . Assault . | . . . . . . . . . Garrison 3 | . . . . . 3 . . . Intercept . | . . . . . . . . . Construction Impeded . | . . . . . . . . . Haulers Reinforced . | . . . . . . . . . Stealth | -11 -10 -9 -9 -8 -7 -7 -7 -6 --------- Run | Scr Mat Mat Min Mat Fac Low Low Fac Distress Signals 5 | . 1 2 . . 1 . . 1 Communications Jammed . | . . . . . . . . . Distress Signals . | . . . . . . . . . Times Spotted 95 | . 7 8 7 1 26 11 11 24 Peak Tracking Total 13 | . 4 4 4 2 4 3 5 13 Tactical Retreats 10 | . . . . . 2 2 2 4 Traps | -11 -10 -9 -9 -8 -7 -7 -7 -6 ------- Run | Scr Mat Mat Min Mat Fac Low Low Fac Traps Triggered 5 | . 1 . . 1 1 . . 2 Indirectly . | . . . . . . . . . Trap Hack Attempts . | . . . . . . . . . Triggered . | . . . . . . . . . Disarmed . | . . . . . . . . . Reprogrammed . | . . . . . . . . . Reused . | . . . . . . . . . Traps Extracted . | . . . . . . . . . Installed . | . . . . . . . . . Triggered 1 | . . . . . . 1 . . Machines | -11 -10 -9 -9 -8 -7 -7 -7 -6 ---------- Run | Scr Mat Mat Min Mat Fac Low Low Fac Machines Disabled 7 | . 2 . 4 . 1 . . . Max in Single Turn 4 | . 1 . 4 . 1 . . . Machines Sabotaged . | . . . . . . . . . Garrisons Compromised . | . . . . . . . . . Overloaded Fab Kills . | . . . . . . . . . Fab Network Shutdowns . | . . . . . . . . . Hacking | -11 -10 -9 -9 -8 -7 -7 -7 -6 --------- Run | Scr Mat Mat Min Mat Fac Low Low Fac Machines Accessed 8 | . 4 . . 3 . . . 1 Terminals 7 | . 4 . . 2 . . . 1 Fabricators . | . . . . . . . . . Repair Stations 1 | . . . . 1 . . . . Recycling Units . | . . . . . . . . . Scanalyzers . | . . . . . . . . . Garrison Access . | . . . . . . . . . Total Hacks 21 | . 7 . . 6 . . . 8 Successful 16 | . 5 . . 5 . . . 6 Failed 5 | . 2 . . 1 . . . 2 Catastrophic . | . . . . . . . . . Database Lockouts . | . . . . . . . . . Manual . | . . . . . . . . . Terminals 17 | . 7 . . 2 . . . 8 Fabricators . | . . . . . . . . . Repair Stations 4 | . . . . 4 . . . . Recycling Units . | . . . . . . . . . Scanalyzers . | . . . . . . . . . Garrison Access . | . . . . . . . . . Terminal Hacks 13 | . 5 . . 2 . . . 6 Record 1 | . 1 . . . . . . . Prototype ID Bank 4 | . 1 . . 2 . . . 1 Branch Access Points 2 | . 1 . . . . . . 1 Emergency Access Points 1 | . . . . . . . . 1 Locate Traps 2 | . 1 . . . . . . 1 Surveillance Status 1 | . 1 . . . . . . . Recall Investigation 1 | . . . . . . . . 1 Zone Layout 1 | . . . . . . . . 1 Fabricator Hacks . | . . . . . . . . . Repair Station Hacks 3 | . . . . 3 . . . . Scan Component 2 | . . . . 2 . . . . Repair 1 | . . . . 1 . . . . Recycling Unit Hacks . | . . . . . . . . . Scanalyzer . | . . . . . . . . . Garrison Access Hacks . | . . . . . . . . . Unauthorized Hacks . | . . . . . . . . . Terminals . | . . . . . . . . . Fabricators . | . . . . . . . . . Repair Stations . | . . . . . . . . . Recycling Units . | . . . . . . . . . Scanalyzers . | . . . . . . . . . Garrison Access . | . . . . . . . . . Data Cores Recovered 1 | . 1 . . . . . . . Used 1 | . 1 . . . . . . . Hacking Detections 4 | . 2 . . 1 . . . 1 Full Trace Events . | . . . . . . . . . Feedback Events . | . . . . . . . . . Feedback Blocked . | . . . . . . . . . Robot Schematics Acquired . | . . . . . . . . . Robots Built . | . . . . . . . . . Matter . | . . . . . . . . . Time . | . . . . . . . . . Total Robot Build Rating . | . . . . . . . . . Part Schematics Acquired . | . . . . . . . . . Parts Built . | . . . . . . . . . Matter . | . . . . . . . . . Time . | . . . . . . . . . Total Part Build Rating . | . . . . . . . . . Parts Repaired 1 | . . . . 1 . . . . Time 26 | . . . . 26 . . . . Parts Recycled . | . . . . . . . . . Recycled Matter . | . . . . . . . . . Retrieved Matter . | . . . . . . . . . Retrieved Components . | . . . . . . . . . Parts Scanalyzed . | . . . . . . . . . Part Schematics Acquired . | . . . . . . . . . Parts Damaged . | . . . . . . . . . Bothacking | -11 -10 -9 -9 -8 -7 -7 -7 -6 ------------ Run | Scr Mat Mat Min Mat Fac Low Low Fac Used RIF Installer . | . . . . . . . . . Robots Hacked 1 | . . . . . . . 1 . Non-combat 1 | . . . . . . . 1 . Combat . | . . . . . . . . . Robot Hacks Applied 1 | . . . . . . . 1 . parse_system 1 | . . . . . . . 1 . Relay Couplers Released . | . . . . . . . . . Robots Rewired . | . . . . . . . . . Allies Hacked . | . . . . . . . . . Hacks Repelled . | . . . . . . . . . Allies | -11 -10 -9 -9 -8 -7 -7 -7 -6 -------- Run | Scr Mat Mat Min Mat Fac Low Low Fac Total Allies . | . . . . . . . . . Largest Group . | . . . . . . . . . Highest-Rated Group . | . . . . . . . . . Highest-Rated Ally . | . . . . . . . . . Total Orders 6 | . . . . . . . . 6 EXPLORE 6 | . . . . . . . . 6 Ally Attacks . | . . . . . . . . . Total Damage . | . . . . . . . . . Kills . | . . . . . . . . . Allies Corrupted . | . . . . . . . . . Allies Melted . | . . . . . . . . . Intel | -11 -10 -9 -9 -8 -7 -7 -7 -6 ------- Run | Scr Mat Mat Min Mat Fac Low Low Fac Robot Analysis Total . | . . . . . . . . . Derelict Logs Recovered 4 | . . . 2 . . 2 . . Drone Launches 6 | . . . . . . . . 6 Drone Recoveries . | . . . . . . . . . Exploration | -11 -10 -9 -9 -8 -7 -7 -7 -6 ------------- Run | Scr Mat Mat Min Mat Fac Low Low Fac Turns Passed 4864 | 111 407 237 446 255 1281 1060 475 592 Spaces Moved 3095 | 71 245 147 350 180 592 723 334 453 Core 453 | 8 . . . . . . 11 434 Treads . | . . . . . . . . . Legs 2628 | 63 245 147 350 180 592 723 323 5 Wheels 14 | . . . . . . . . 14 Hover . | . . . . . . . . . Flight . | . . . . . . . . . Fastest Speed 50 | 50 120 120 120 120 120 120 120 50 Average Speed 112 | 116 120 120 120 120 123 123 129 53 Slowest Speed 400 | 150 120 120 120 120 240 155 400 150 Overloaded Moves . | . . . . . . . . . Propulsion Burnouts . | . . . . . . . . . Robots Hopped . | . . . . . . . . . Cave-ins Triggered . | . . . . . . . . . Exploration Rate (%) 34 | 4 46 23 64 19 16 87 33 21 Regions Visited 8 Branch Regions 3 Pre-discovered Areas 3 | . . . 3 . . . . . Known Exits Taken 1 | . . . . . . 1 . . Unknown Exits Taken 7 | 1 1 1 1 1 1 . 1 . Scrap Searched 8 | . . . 1 . . 5 2 . Spaces Dug . | . . . . . . . . . Terrain Destroyed 168 | . 29 77 52 . 3 . 7 . Melee . | . . . . . . . . . Projectile . | . . . . . . . . . AOE 168 | . 29 77 52 . 3 . 7 . Actions | -11 -10 -9 -9 -8 -7 -7 -7 -6 --------- Run | Scr Mat Mat Min Mat Fac Low Low Fac Total 4156 | 89 348 183 369 219 991 828 361 768 Wait 722 | . 84 . 12 26 276 51 8 265 Move 3087 | 70 244 146 349 179 591 722 333 453 Hop . | . . . . . . . . . Pick Up 65 | 8 7 6 . 8 19 10 4 3 Fast Attach 13 | . . 4 . . 1 . . 8 Attach 47 | 6 1 . . 2 17 12 3 6 Detach 2 | . . . . . . . . 2 Swap 12 | . 1 . 1 2 5 2 . 1 Drop 28 | . 2 8 1 2 5 1 . 9 Fire 156 | 5 9 19 6 . 77 30 9 1 Melee 21 | . . . . . . . 4 17 Ram . | . . . . . . . . . Kick 3 | . . . . . . . . 3 Crush . | . . . . . . . . . Escape Stasis . | . . . . . . . . . Rewire . | . . . . . . . . . Trap . | . . . . . . . . . Miscellaneous . | . . . . . . . . . Route ------- -11/Scrapyard -10/Materials (discovered 2 exits: [*Mat] / *Min) -9/Materials -9/Mines -8/Materials -7/Factory -7/Lower Caves -7/Lower Caves -6/Factory (discovered 5 exits: [*Fac] / Low x2 / Ext x2) History --------- Turn | Location | Event 28 | -11/Scrapyard | Discovered new exit (range 14) 112 | -11/Scrapyard | Entered Materials 318 | -10/Materials | Build established: Mutant 337 | -10/Materials | Discovered new exit (range 16) 425 | -10/Materials | Identified exit to Mines 487 | -10/Materials | Discovered new exit (range 8) 519 | -10/Materials | Entered another Materials area 519 | -9/Materials | Evolved 2 slots: Propulsion x1, Utility x1 665 | -9/Materials | Discovered new exit (range 9) 756 | -9/Materials | Entered Mines 769 | -9/Mines | Learned location of Zion (-6) 794 | -9/Mines | Discovered new exit (range 12) 972 | -9/Mines | Learned location of Storage (-7) 1096 | -9/Mines | Assembled infested the area 1101 | -9/Mines | Assisted by a Guerilla fighting off Assembled 1202 | -9/Mines | Entered Materials 1202 | -8/Materials | Evolved 2 slots: Propulsion x1, Utility x1 1268 | -8/Materials | Repaired Lgt. Armor Plating 1442 | -8/Materials | Discovered new exit (range 10) 1457 | -8/Materials | Entered Factory 1457 | -7/Factory | Evolved 2 slots: Propulsion x1, Utility x1 1575 | -7/Factory | Build established: Scavenger-Mutant 1957 | -7/Factory | Lost 3 parts (1p1n1u) 2185 | -7/Factory | Garrison activated, responded to threat 2300 | -7/Factory | Lost 6 parts (3n2u1w) 2511 | -7/Factory | Discovered new exit (range 16) 2633 | -7/Factory | Lost 3 parts (1p2w) 2738 | -7/Factory | Entered Lower Caves 2916 | -7/Lower Caves | Attracted the attention of an 0b10 checkpoint 3414 | -7/Lower Caves | Learned Factory machine intel 3435 | -7/Lower Caves | Identified exit to Lower Caves 3496 | -7/Lower Caves | Core integrity fell below 50% 3544 | -7/Lower Caves | Lost 8 parts (1p3n4w) 3798 | -7/Lower Caves | Entered another Lower Caves area 3881 | -7/Lower Caves | Discovered new exit (range 5) 4094 | -7/Lower Caves | Encountered a Warlord checkpoint 4097 | -7/Lower Caves | Spotted B-75 Beast 4144 | -7/Lower Caves | Attracted the attention of an 0b10 base 4189 | -7/Lower Caves | Lost 6 parts (3n2u1w) 4246 | -7/Lower Caves | Core integrity fell below 20% 4273 | -7/Lower Caves | Entered Factory 4273 | -6/Factory | Evolved 2 slots: Propulsion x1, Utility x1 4274 | -6/Factory | Loaded intel: 244 machine locations 4295 | -6/Factory | Lost 6 parts (1p3n2w) 4402 | -6/Factory | Lost 3 parts (1p2u) 4546 | -6/Factory | Build established: Mutant 4716 | -6/Factory | Identified exit to Lower Caves 4716 | -6/Factory | Identified exit to Extension 4726 | -6/Factory | Discovered new exit (range 14) 4824 | -6/Factory | Core integrity fell below 50% 4843 | -6/Factory | Core integrity fell below 20% 4865 | -6/Factory | Destroyed by H-66 Slayer with Gauss Rifle Last Messages --------------- 04823_ U-05 Engineer lays Concrete. 04824_ K-01 Serf cleans the Terminal. 04825_ Great Maul destroyed. 04828_ U-05 Engineer destroyed. 04828_ K-01 Serf cleans the Terminal. 04829_ K-01 Serf destroyed. 04829_ K-01 Serf collects debris. 04834_ Adv. Weight Redist. System destroyed. 04845_ G-50 Soldier destroyed. 04849_ Imp. EM Pulse Cannon destroyed. 04850_ Acquired Carbon-fiber Leg. 04852_ Acquired 59 matter. 04853_ Slammed into G-50 Soldier. 04855_ Destabilizing: System corrupted (+2). 04856_ Slammed into G-50 Soldier. 04858_ Slug penetrates Wall. 04861_ Carbon-fiber Leg destroyed. 04862_ Slug penetrates Wall. 04864_ K-01 Serf cleans the Power Conduit. 04865_ Slug penetrates Wall. Map ----- +----------------------------------------------------+ | ???????????????????""??""???????"""??????????????? | | ???????????????????""??""?????????????????""""""?? | | ???????????????????"""?"""??????"""???????""""""?? | | ???????????????????"""?"""??????"""???????""""""?? | | ?"?"?"?"?"?????????"""?"""??????"""???????""""""?? | | ?"?"?"?"?"???????????????????????????????????????? | | ?"?"?"?"?"????????????????????""?""??????????????? | | ?"?"?"?"?"????????????????????""S""??????????????? | | ?"?"?"?"?"????????????????????""""???????????????? | | ?"?"?"?"?"???????????????????????????????????????? | | ?"?"?"?"?"???????????????????????????????????????? | | ?"?"?"?"?"???????????????????????????????????????? | | ?"?"?"?"?"???????????????????????????????????????? | | ?????????????????????????????????????????????????? | | ?????????????? ????????????????????????????????? | | ???????????# ????????????????????????????????? | | ???????????# ???????######???????????????????? | | ?"?"?"?"?"?# ???????# ?????????????????? | | ?"?"?"?"?"?# ???????# " " " "?"?????????????? | | ?"?"?"?"?"?# ???????# " " " "?"?????????????? | | ?"?"?"?"?"?# ######## " " " "?"?????????????? | | ?"?"?"?"?"?# # " " " "?"?????????????? | | ?"?"?"?"?"?+ # " " " "?"?????????????? | | ?"?"?"?"?"?# + " " " "?"?????????????? | | ?"?"?"?"?"?# # " " " " "?????????????? | | ?"?"?"?"?"??? #@ " " " " "?????????????? | | ????????????????# # " " " " " #???????????? | | ????????????????# #s k #???????????? | | ????????????????#% s #???????????? | | ????????????????#%#####+##############???????????? | | ????????????????#%#?? ???????????????????????? | | ????????????????#!## #??????????????????????? | | ????????????????#%## " " #??????????????????????? | | ????????????????# ## "Y" #??????????????????????? | | ????????????????# ## """ #??????????????????????? | | ????????????????# ## #??????????????????????? | | ????????????????# #########??????????????????????? | | ????????????????# #??????????????????????????????? | | T???????????????# #??????????????????????????????? | | "???????????????# #??????????????????????????????? | | ????????????????# #??????????????????????????????? | | ????????????????# #??????????????????????????????? | | ????????????????# #??????????????????????????????? | | ???????????######/##?????????????????????????????? | | ???????????# #?????????????????????????????? | | ???????????# ""G"" #?????????????????????????????? | | ???????????# " " #?????????????????????????????? | | ???????????# #?????????????????????????????? | | ???????????# #?????????????????????????????? | | ???????????# " #?????????????????????????????? | +----------------------------------------------------+ Best States ------------- Heat Dissipation 51 Energy Generation 18 Energy Capacity 275 Matter Stores 300 Matter Capacity 300 Sight Range 16 Robot Scan Range 10 Terrain Scan Density 10 Additional Mass Support 9 Armor Coverage 525 Evasion (%) 50 Item Schematics ----------------- None Robot Schematics ------------------ None Fabricated ------------ Nothing Alien Tech Used ----------------- None Achievements -------------- None Challenges ------------ None Game ------ Seed BattleAssembledScythe Manual? 0 Play Time 01:11:56 Cumulative 25.0 hours Start 2020.04.11 @ 16:29:50 End 2020.04.11 @ 21:54:47 Sessions 3 Manual Loads 0 Difficulty Rogue Special Mode None Game No. 18 Rogue 18 Adventurer 0 Explorer 0 Win Type - Total 0 Types 0/0/0/0/0/0/0 Lore% 6 Gallery% 26 Achievement% 19 Wizard Run 0 Options --------- ASCII 0 Keyboard 0 Movement Numpad Keybinds 0 Fullscreen 1 Font 20/SmallcapsGlow Map View 66x50 Tactical HUD 1 Map Filters NONE Filters NONE Steam 1 RUN: 27bf5a76-608b-476f-81a0-89d55fcc7fa4